{"text_format":"1","workbook":"xlsx","n_sheets":14,"sheets":["Cover","Info","Results","E01","E02","E03","E04","E05","E06","E07","E08","E09","E10","About"],"not_rendered":{"charts":11,"images":37,"macros":1,"external_links":0,"defined_names":15,"comments":0,"pivot_tables":0},"unopened":[],"bounds":{"document_bytes":16777216,"sheet_cells":100000,"rows_first":2000,"rows_last":500,"rows_between":2000,"halvings":0,"cell_chars":16384,"cell_head_chars":4096},"cells_cut":0,"cells_raw":0,"read":"whole","date_system":"1900"}

{"sheet":"Cover","index":0,"n_rows":0,"n_cols":0,"rows_kept":0,"cut":false,"hidden":false,"merged":[]}

{"sheet":"Info","index":1,"n_rows":39,"n_cols":4,"rows_kept":39,"cut":false,"hidden":false,"merged":[[38,1,38,3],[39,1,39,3],[2,1,2,2],[3,1,3,2],[4,1,4,2],[5,1,5,2],[6,1,6,2],[37,1,37,3],[31,1,31,2],[32,1,32,2],[33,1,33,2],[34,1,34,2],[35,1,35,2]]}
[]
[]
[null,"This Assessment این ارزیابی",null,"Response پاسخ"]
[null,"City name  نام شهر"]
[null,"Type of city (municipality, metropolitan areas, etc)   نوع شهر (شهرداری، کلانشهرو غیره)"]
[null,"Country کشور"]
[null,"Date of assessment تاریخ ارزیابی"]
[]
[null,"City Profile (Required)مشخصات شهر (الزامی)","Response پاسخ","Source Date تاریخ منبع"]
[null,"Title of the highest level of authority (e.g. Mayor, etc)\nعنوان بالاترین سطح اختیارات (به عنوان مثال شهردار، و غیره)"]
[null,"Total city population:   \nجمعیت کل شهر:"]
[null,"City square kilometers:\nمساحت شهر کیلومتر مربع"]
[null,"Population density (per square kilometer): \nتراکم جمعیت در هر کیلوتر مربع"]
[null,"Population that are youth (15-24) (%):\nجمعیت جوانان  (۲۴ - ۲۴) (%):"]
[null,"Population that are senior citizens (65+) (%):\nجمعیت سالمندان  (+65) (%):"]
[null,"Gender (female-headed households):\nجنسیت (خانوارهای با سرپرست زن):"]
[null,"Literacy rate (% literate population):\nنرخ سواد (٪ جمعیت شناخته شده):"]
[null,"Poverty rate (% population not in poverty):\nنرخ فقر (٪ جمعیت فقیر نیست):"]
[null,"Ave. household income (USD):\nمیانگین درآمد خانوار (دلار):"]
[null,"Residents who are not citizens (%):\n شهروندان ساکن (٪):"]
[null,"Most likely (probable) known disaster risk: \nمحتمل ترین ریسک شناخته شده"]
[null,"Most severe disaster (known): \nشدیدترین بحران (شناخته‌شده):"]
[]
[null,"City Profile (Optional)مشخصات شهر (اختیاری)","Response پاسخ","Source Date تاریخ منبع"]
[null,"Total number of households: \nتعداد کل خانوار:"]
[null,"Persons per unit:\nافراد در هر واحد:"]
[null,"Cost of living (USD):\nهزینه زندگی (دلار آمریکا):"]
[null,"Country’s GDP per capita (USD)\nسرانه تولید ناخالص داخلی کشور (دلار آمریکا)"]
[null,"Gini coefficient:\nضریب جینی:"]
[null,"City product per capita (USD):\nسرانه محصول شهر (دلار آمریکا):"]
[]
[null,"Local Government Disaster Risk Reduction and Resilience Team\nتیم محلی کاهش ریسک و تاب آوری",null,"Response پاسخ"]
[null,"Name of person leading / coordinating completion of the scorecard assessment:\nنام شخص اصلی / هماهنگ کننده ارزیابی کارت امتیازی:"]
[null,"Organization: \nسازمان"]
[null,"Contact details:\nجزئیات تماس"]
[null,"Willingness to share results or be used as an example / case study by UNDRR and partners:\nآمادگی برای به اشتراک گذاشتن نتایج و یا به عنوان مثال /  مطالعه توسط UNISDR و اعضا:"]
[]
[null,"Stakeholder Information اطلاعات ذینفعان"]
[null,"Please list all stakeholders that have supported this assessment below.\nلطفاً همه ذینفعان که از این ارزیابی پشتیبانی کرده‌اند را فهرست کنید."]

{"sheet":"Results","index":2,"n_rows":221,"n_cols":13,"rows_kept":221,"cut":false,"hidden":false,"merged":[[158,1,158,3],[134,1,134,6],[136,2,136,5],[137,2,137,5],[138,2,138,5],[139,2,139,5],[140,2,140,5],[141,2,141,5],[142,2,142,5],[146,1,146,6],[148,2,148,5],[149,2,149,5],[111,2,111,5],[98,2,98,5],[94,1,94,6],[96,2,96,5],[97,2,97,5],[106,1,106,6],[108,2,108,5],[109,2,109,5],[110,2,110,5],[99,2,99,5],[100,2,100,5],[101,2,101,5],[89,2,89,5],[85,1,85,6],[74,2,74,5],[75,2,75,5],[76,2,76,5],[77,2,77,5],[87,2,87,5],[88,2,88,5],[51,2,51,5],[61,2,61,5],[62,2,62,5],[63,2,63,5],[64,2,64,5],[131,2,131,5],[35,2,35,5],[36,2,36,5],[37,2,37,5],[123,2,123,5],[124,2,124,5],[125,2,125,5],[47,2,47,5],[48,2,48,5],[49,2,49,5],[50,2,50,5],[126,2,126,5],[127,2,127,5],[128,2,128,5],[129,2,129,5],[130,2,130,5]]}
[]
[]
[]
[]
[]
[]
[]
[]
[]
[]
[]
[]
[]
[]
[]
[]
[]
[]
[]
[]
[]
[]
[]
[]
[]
[]
[]
[]
[]
[]
[]
[]
[]
[null,"Essential 01: Organize for Resilience",null,null,"اصل 01: سازماندهی برای تاب آوری"]
[]
[null,{"$f":"C175","v":"P1.1"},{"$f":"E175","v":"Does the City master plan (or relevant strategy/plan) adopt the Sendai Framework?"},null,null,null,{"$f":"F175","v":0}]
[null,{"$f":"C176","v":"P1.2"},{"$f":"E176","v":"Is there a multi-agency/sectoral mechanism with appropriate authority and resources to address disaster risk reduction?"},null,null,null,{"$f":"F176","v":0}]
[null,"P1.3","Is resilience properly integrated with other key city functions / portfolios?",null,null,null,0]
[]
[]
[]
[]
[]
[]
[]
[null,"Essential 02: Identify, Understand and Use Current and Future Risk Scenarios"]
[]
[null,{"$f":"C178","v":"P2.1"},{"$f":"E178","v":"Does the city have knowledge of the key hazards that the city faces, and their likelihood of occurrence?"},null,null,null,{"$f":"F178","v":0}]
[null,{"$f":"C179","v":"P2.2"},{"$f":"E179","v":"Is there a shared understanding of risks between the city and various utility providers and other regional and national agencies that have a role in managing infrastructure such as power, water, roads and trains, of the points of stress on the system and city scale risks? "},null,null,null,{"$f":"F179","v":0}]
[null,"P2.3","Are their agreed scenarios setting out city-wide exposure and vulnerability from each hazard, or groups of hazards (see above)?",null,null,null,0]
[null,"P2.4",{"$f":"E181","v":"Is there a collective understanding of potentially cascading failures between different city and infrastructure systems, under different scenarios?"},null,null,null,0]
[null,"P2.5",{"$f":"E182","v":"Do clear hazard maps and data on risk exist? Are these regularly updated?"},null,null,null,0]
[]
[]
[]
[]
[]
[]
[]
[null,"Essential 03: Strengthen Financial Capacity for Resilience"]
[]
[null,{"$f":"C183","v":"P3.1"},{"$f":"E183","v":"The city / lead agencies understand all sources of funding, and the “resilience dividends”, are well connected, understand all available routes to attract external funding and are actively pursuing funds for major resilience investments."},null,null,null,{"$f":"F183","v":0}]
[null,{"$f":"C184","v":"P3.2"},{"$f":"E184","v":"Does the city have in place a specific ‘ring fenced’ (protected) budget, the necessary resources and contingency fund arrangements for local disaster risk reduction (mitigation, prevention, response and recovery)?"},null,null,null,{"$f":"F184","v":0}]
[null,"P3.3","What level of insurance cover exists in the city, across all sectors – business and community?",null,null,null,0]
[null,"P3.4","What incentives exist for different sectors and segments of business and society to support resilience building?",null,null,null,0]
[]
[]
[]
[]
[]
[]
[]
[null,"Essential 04: Pursue Resilient Urban Development"]
[]
[null,{"$f":"C187","v":"P4.1"},{"$f":"E187","v":"Is the city appropriately zoned considering, for example, the impact from key risk scenarios on economic activity, agricultural production, and population centres?"},null,null,null,{"$f":"F187","v":0}]
[null,{"$f":"C188","v":"P4.2"},{"$f":"E188","v":"Are approaches promoted through the design and development of new urban development to promote resilience?"},null,null,null,{"$f":"F188","v":0}]
[null,"P4.3","Do building codes or standards exist, and do they address specific known hazards and risks for the city? Are these standards regularly updated?",null,null,null,0]
[null,"P4.4","Are zoning rules, building codes and standards widely applied, properly enforced and verified?",null,null,null,0]
[]
[]
[]
[]
[]
[]
[]
[null,"Essential 05: Safeguard Natural Buffers to Enhance the Protective Functions Offered by Natural Ecosystems "]
[]
[null,{"$f":"C191","v":"P5.1"},{"$f":"E191","v":"Beyond just an awareness of the natural assets, does the city understand the functions (or services) that this natural capital provides for the city?"},null,null,null,{"$f":"F191","v":0}]
[null,{"$f":"C192","v":"P5.2"},{"$f":"E192","v":"Is green and blue infrastructure being promoted on major urban development and infrastructure projects through policy?"},null,null,null,{"$f":"F192","v":0}]
[null,{"$f":"C193","v":"P5.3"},"Is the city aware of ecosystem services being provided to the city from natural capital beyond its administrative borders? Are agreements in place with neighbouring administrations to support the protection and management of these assets?",null,null,null,{"$f":"F193","v":0}]
[]
[]
[]
[]
[null,"Essential 06: Strengthen Institutional Capacity for Resilience"]
[]
[null,{"$f":"C194","v":"P6.1"},{"$f":"E194","v":"Does the city have clear access to all the skills and experience it believes it would need to respond to reduce risks and respond to identified disaster scenarios?"},null,null,null,{"$f":"F194","v":0}]
[null,{"$f":"C195","v":"P6.2"},{"$f":"E195","v":"Does a co-ordinated public relations and education campaign exist, with structured messaging and channels to ensure hazard, risk and disaster information (that can be understood and used) are properly disseminated to the public?"},null,null,null,{"$f":"F195","v":0}]
[null,"P6.3","Extent to which data on the city’s resilience context is shared with other organizations involved with the city’s resilience.",null,null,null,0]
[null,"P6.4",{"$f":"E197","v":"Are there training courses covering risk and resilience issues offered to all sectors of the city including government, business, NGOs and community?"},null,null,null,0]
[null,"P6.5",{"$f":"E198","v":"Are training materials available in the majority of languages in common use in the city?"},null,null,null,0]
[null,"P6.6","Is the city proactively seeking to exchange knowledge and learn from other cities facing similar challenges?",null,null,null,0]
[]
[]
[]
[]
[null,"Essential 07:  Understand and Strengthen Societal Capacity for Resilience"]
[]
[null,{"$f":"C200","v":"P7.1"},{"$f":"E200","v":"Are “grassroots” or community organizations participating in risk reduction and post-event response for each neighbourhood in the city?"},null,null,null,{"$f":"F200","v":0}]
[null,{"$f":"C201","v":"P7.2"},{"$f":"E201","v":"Are there regular training programmes provided to the most vulnerable populations in the city?"},null,null,null,{"$f":"F201","v":0}]
[null,"P7.3","What proportion of businesses have a documented business continuity plan that has been reviewed within the last 18 months?",null,null,null,0]
[null,"P7.4",{"$f":"E203","v":"How effective is the city at citizen engagement and communications in relation to DRR?"},null,null,null,0]
[]
[]
[]
[]
[]
[]
[]
[]
[]
[null,"Essential 08: Increase Infrastructure Resilience"]
[]
[null,{"$f":"C204","v":"P8.1"},{"$f":"E204","v":"Is critical infrastructure resilience a city priority, does the city own and implement a critical infrastructure plan or strategy?"},null,null,null,{"$f":"F204","v":0}]
[null,{"$f":"C205","v":"P8.2"},{"$f":"E205","v":"Is existing protective infrastructure well-designed and well-built based on risk information?"},null,null,null,{"$f":"F205","v":0}]
[null,"P8.3","Would a significant loss of service for these two essential services be expected for a significant proportion of the city under the agreed disaster scenarios?",null,null,null,0]
[null,"P8.4",{"$f":"E207","v":"Would a significant loss of service be expected for a significant proportion of the city in the ‘worst case’ scenario event? In the event of failure would energy infrastructure corridors remain safe (i.e. free from risk of leaks, electrocution hazards etc.)?"},null,null,null,0]
[null,"P8.5","Would a significant loss of service be expected for a significant proportion of the city in the ‘worst case’ scenario event? In the event of failure would transport infrastructure corridors remain safe (i.e. free from risk of flood, shocks etc) and passable?",null,null,null,0]
[null,"P8.6","Would a significant loss of service be expected for a significant proportion of the city in the ‘worst case’ scenario event?",null,null,null,0]
[null,"P8.7","Would there be sufficient acute healthcare capabilities to deal with expected major injuries in ‘worst case’ scenario?",null,null,null,0]
[null,"P8.8","% of education structures at risk of damage from “most probable” and “most severe” scenarios",null,null,null,0]
[null,{"$f":"C212","v":"P8.9"},"Will there be sufficient first responder equipment, with military or civilian back up as required?",null,null,null,0]
[]
[]
[null,"Essential 09: Ensure Effective Disaster Response"]
[]
[null,{"$f":"C213","v":"P9.1"},{"$f":"E213","v":"Does the city have a plan or standard operating procedure to act on early warnings and forecasts? What proportion of the population is reachable by early warning system?"},null,null,null,{"$f":"F213","v":0}]
[null,{"$f":"C214","v":"P9.2"},{"$f":"E214","v":"Is there a disaster management / preparedness / emergency response plan outlining city mitigation, preparedness and response to local emergencies?"},null,null,null,{"$f":"F214","v":0}]
[null,"P9.3","Does the responsible disaster management authority have sufficient staffing capacity to support first responder duties in surge event scenario?",null,null,null,0]
[null,"P9.4","Are equipment and supply needs, as well as the availability of equipment, clearly defined?",null,null,null,0]
[null,"P9.5","Would the city be able to continue to feed and shelter its population post-event?",null,null,null,0]
[null,"P9.6","Is there an emergency operations centre, with participation from all agencies, automating standard operating procedures specifically designed to deal with “most probable” and “most severe” scenarios?",null,null,null,0]
[null,"P9.7",{"$f":"E219","v":"Do practices and drills involve both the public and professionals?"},null,null,null,{"$f":"F219","v":0}]
[]
[]
[]
[null,"Essential 10: Expedite Recovery and Build Back Better"]
[]
[null,{"$f":"C220","v":"P10.1"},{"$f":"E220","v":"Is there a strategy or process in place for post-event recovery and reconstruction, including economic reboot, societal aspects etc.?"},null,null,null,{"$f":"F220","v":0}]
[null,{"$f":"C221","v":"P10.2"},{"$f":"E221","v":"Do post-event assessment processes incorporate failure analyses and the ability to capture lessons learned that then feed into design and delivery of rebuilding projects?"},null,null,null,{"$f":"F221","v":0}]
[]
[]
[]
[]
[]
[]
[]
[]
[null,{"$f":"TODAY()","v":"2022-03-25"}]
[]
[]
[null,null,"Label","Name",null,"Essential","TotalScore","MaxScore","Label"]
[null,null,"S1","1.   Organise for Disaster Resilience",null,"E1",{"$f":"SUMIFS($F$175:$F$1154,$B$175:$B$1154,F163)","v":0},{"$f":"COUNTIFS($B$175:$B$221,F163)*3","v":9},"01",null,{"$f":"SUM(G163:G172)","v":0},{"$f":"K163/K164","v":0},{"$f":"CONCATENATE(\"The overall score for this assessment is \",SUM(G163:G172),\" / \",SUM(H163:H172))","v":"The overall score for this assessment is 0 / 141"}]
[null,null,"S2","2.   Identify, Understand and Use Current and Future Risk Scenarios",null,"E2",0,15,"02",null,{"$f":"SUM(H163:H172)","v":141},{"$f":"1-L163","v":1}]
[null,null,"S3","3.   Strengthen Financial Capacity for Resilience",null,"E3",0,12,"03"]
[null,null,"S4","4.   Pursue Resilient Urban Development and Design",null,"E4",0,12,"04"]
[null,null,"S5","5.   Safeguard Natural Buffers to Enhance Ecosystems’ Protective Functions",null,"E5",0,9,"05"]
[null,null,"S6","6.   Strengthen Institutional Capacity for Resilience",null,"E6",0,18,"06"]
[null,null,"S7","7.   Understand and Strengthen Societal Capacity for Resilience",null,"E7",0,12,"07"]
[null,null,"S8","8.   Increase Infrastructure Resilience",null,"E8",0,27,"08"]
[null,null,"S9","9.   Ensure Effective Disaster Response",null,"E9",0,21,"09"]
[null,null,"S10","10. Expedite Recovery and Build Back Better",null,"E10",0,6,"10"]
[]
[null,"Section","Ref",null,"Question","SelectedScore","ThisScore"]
[null,"E1","P1.1",null,"Does the City master plan (or relevant strategy/plan) adopt the Sendai Framework?",{"$f":"IF(G175=\"\",0,IF(G175=0,0,4-G175))","v":0},{"$f":"'E01'!$E$7","v":0}]
[null,"E1","P1.2",null,"Is there a multi-agency/sectoral mechanism with appropriate authority and resources to address disaster risk reduction?",{"$f":"IF(G176=\"\",0,IF(G176=0,0,4-G176))","v":0},{"$f":"'E01'!$E$18","v":0}]
[null,"E1","P1.3",null,"Is resilience properly integrated with other key city functions / portfolios?",0,{"$f":"'E01'!$E$29","v":0}]
[null,"E2","P2.1",null,"Does the city have knowledge of the key hazards that the city faces, and their likelihood of occurrence?",0,{"$f":"'E02'!$E$7","v":0}]
[null,"E2","P2.2",null,"Is there a shared understanding of risks between the city and various utility providers and other regional and national agencies that have a role in managing infrastructure such as power, water, roads and trains, of the points of stress on the system and city scale risks? ",0,{"$f":"'E02'!$E$18","v":0}]
[null,"E2","P2.3",null,"Are their agreed scenarios setting out city-wide exposure and vulnerability from each hazard, or groups of hazards (see above)?",0,{"$f":"'E02'!$E$29","v":0}]
[null,"E2","P2.4",null,"Is there a collective understanding of potentially cascading failures between different city and infrastructure systems, under different scenarios?",0,{"$f":"'E02'!$E$40","v":0}]
[null,"E2","P2.5",null,"Do clear hazard maps and data on risk exist? Are these regularly updated?",0,{"$f":"'E02'!$E$51","v":0}]
[null,"E3","P3.1",null,"The city / lead agencies understand all sources of funding, and the “resilience dividends”, are well connected, understand all available routes to attract external funding and are actively pursuing funds for major resilience investments.",0,{"$f":"'E03'!$E$7","v":0}]
[null,"E3","P3.2",null,"Does the city have in place a specific ‘ring fenced’ (protected) budget, the necessary resources and contingency fund arrangements for local disaster risk reduction (mitigation, prevention, response and recovery)?",0,{"$f":"'E03'!$E$18","v":0}]
[null,"E3","P3.3",null,"What level of insurance cover exists in the city, across all sectors – business and community?",0,{"$f":"'E03'!$E$29","v":0}]
[null,"E3","P3.4",null,"What incentives exist for different sectors and segments of business and society to support resilience building?",0,{"$f":"'E03'!$E$40","v":0}]
[null,"E4","P4.1",null,"Is the city appropriately zoned considering, for example, the impact from key risk scenarios on economic activity, agricultural production, and population centres?",0,{"$f":"'E04'!$E$7","v":0}]
[null,"E4","P4.2",null,"Are approaches promoted through the design and development of new urban development to promote resilience?",0,{"$f":"'E04'!$E$18","v":0}]
[null,"E4","P4.3",null,"Do building codes or standards exist, and do they address specific known hazards and risks for the city? Are these standards regularly updated?",0,{"$f":"'E04'!$E$18","v":0}]
[null,"E4","P4.4",null,"Are zoning rules, building codes and standards widely applied, properly enforced and verified?",0,{"$f":"'E04'!$E$40","v":0}]
[null,"E5","P5.1",null,"Beyond just an awareness of the natural assets, does the city understand the functions (or services) that this natural capital provides for the city?",0,{"$f":"'E05'!$E$7","v":0}]
[null,"E5","P5.2",null,"Is green and blue infrastructure being promoted on major urban development and infrastructure projects through policy?",0,{"$f":"'E05'!$E$18","v":0}]
[null,"E5","P5.3",null,"Is the city aware of ecosystem services being provided to the city from natural capital beyond its administrative borders? Are agreements in place with neighbouring administrations to support the protection and management of these assets?",0,{"$f":"'E05'!$E$29","v":0}]
[null,"E6","P6.1",null,"Does the city have clear access to all the skills and experience it believes it would need to respond to reduce risks and respond to identified disaster scenarios?",0,{"$f":"'E06'!$E$7","v":0}]
[null,"E6","P6.2",null,"Does a co-ordinated public relations and education campaign exist, with structured messaging and channels to ensure hazard, risk and disaster information (that can be understood and used) are properly disseminated to the public?",0,{"$f":"'E06'!$E$18","v":0}]
[null,"E6","P6.3",null,"Extent to which data on the city’s resilience context is shared with other organizations involved with the city’s resilience.",0,{"$f":"'E06'!$E$29","v":0}]
[null,"E6","P6.4",null,"Are there training courses covering risk and resilience issues offered to all sectors of the city including government, business, NGOs and community?",0,{"$f":"'E06'!$E$40","v":0}]
[null,"E6","P6.5",null,"Are training materials available in the majority of languages in common use in the city?",0,{"$f":"'E06'!$E$51","v":0}]
[null,"E6","P6.6",null,"Is the city proactively seeking to exchange knowledge and learn from other cities facing similar challenges?",0,{"$f":"'E06'!$E$62","v":0}]
[null,"E7","P7.1",null,"Are “grassroots” or community organizations participating in risk reduction and post-event response for each neighbourhood in the city?",0,{"$f":"'E07'!$E$7","v":0}]
[null,"E7","P7.2",null,"Are there regular training programmes provided to the most vulnerable populations in the city?",0,{"$f":"'E07'!$E$18","v":0}]
[null,"E7","P7.3",null,"What proportion of businesses have a documented business continuity plan that has been reviewed within the last 18 months?",0,{"$f":"'E07'!$E$29","v":0}]
[null,"E7","P7.4",null,"How effective is the city at citizen engagement and communications in relation to DRR?",0,{"$f":"'E07'!$E$40","v":0}]
[null,"E8","P8.1",null,"Is critical infrastructure resilience a city priority, does the city own and implement a critical infrastructure plan or strategy?",0,{"$f":"'E08'!E7","v":0}]
[null,"E8","P8.2",null,"Is existing protective infrastructure well-designed and well-built based on risk information?",0,{"$f":"'E08'!E18","v":0}]
[null,"E8","P8.3",null,"Would a significant loss of service for these two essential services be expected for a significant proportion of the city under the agreed disaster scenarios?",0,{"$f":"'E08'!E29","v":0}]
[null,"E8","P8.4",null,"Would a significant loss of service be expected for a significant proportion of the city in the ‘worst case’ scenario event? In the event of failure would energy infrastructure corridors remain safe (i.e. free from risk of leaks, electrocution hazards etc.)?",0,{"$f":"'E08'!E40","v":0}]
[null,"E8","P8.5",null,"Would a significant loss of service be expected for a significant proportion of the city in the ‘worst case’ scenario event? In the event of failure would transport infrastructure corridors remain safe (i.e. free from risk of flood, shocks etc) and passable?",0,{"$f":"'E08'!E51","v":0}]
[null,"E8","P8.6",null,"Would a significant loss of service be expected for a significant proportion of the city in the ‘worst case’ scenario event?",0,{"$f":"'E08'!E62","v":0}]
[null,"E8","P8.7",null,"Would there be sufficient acute healthcare capabilities to deal with expected major injuries in ‘worst case’ scenario?",0,{"$f":"'E08'!E73","v":0}]
[null,"E8","P8.8",null,"% of education structures at risk of damage from “most probable” and “most severe” scenarios",0,{"$f":"'E08'!E84","v":0}]
[null,"E8","P8.9",null,"Will there be sufficient first responder equipment, with military or civilian back up as required?",0,{"$f":"'E08'!E95","v":0}]
[null,"E9","P9.1",null,"Does the city have a plan or standard operating procedure to act on early warnings and forecasts? What proportion of the population is reachable by early warning system?",0,{"$f":"'E09'!$E$7","v":0}]
[null,"E9","P9.2",null,"Is there a disaster management / preparedness / emergency response plan outlining city mitigation, preparedness and response to local emergencies?",0,{"$f":"'E09'!$E$18","v":0}]
[null,"E9","P9.3",null,"Does the responsible disaster management authority have sufficient staffing capacity to support first responder duties in surge event scenario?",0,{"$f":"'E09'!$E$29","v":0}]
[null,"E9","P9.4",null,"Are equipment and supply needs, as well as the availability of equipment, clearly defined?",0,{"$f":"'E09'!$E$40","v":0}]
[null,"E9","P9.5",null,"Would the city be able to continue to feed and shelter its population post-event?",0,{"$f":"'E09'!$E$51","v":0}]
[null,"E9","P9.6",null,"Is there an emergency operations centre, with participation from all agencies, automating standard operating procedures specifically designed to deal with “most probable” and “most severe” scenarios?",0,{"$f":"'E09'!$E$62","v":0}]
[null,"E9","P9.7",null,"Do practices and drills involve both the public and professionals?",0,{"$f":"'E09'!$E$73","v":0}]
[null,"E10","P10.1",null,"Is there a strategy or process in place for post-event recovery and reconstruction, including economic reboot, societal aspects etc.?",0,{"$f":"'E10'!$E$7","v":0}]
[null,"E10","P10.2",null,"Do post-event assessment processes incorporate failure analyses and the ability to capture lessons learned that then feed into design and delivery of rebuilding projects?",0,{"$f":"'E10'!$E$18","v":0}]

{"sheet":"E01","index":3,"n_rows":33,"n_cols":6,"rows_kept":33,"cut":false,"hidden":false,"merged":[[17,2,20,3],[25,2,25,3],[26,2,26,3],[27,2,27,3],[28,2,31,3],[16,2,16,3],[4,2,4,3],[3,2,3,3],[5,2,5,3],[6,2,9,3],[14,2,14,3],[15,2,15,3]]}
[]
[]
[null,"P1.1 - Plan making     برنامه سازی"]
[null,"Question    سوال","Comments   توضیحات"]
[]
[null,"Response            پاسخ","Provide means of verification (explanation and evidence)\nارائه مستندات و شواهد"]
[null,"3-  برنامه یکپارچه DRR کامل، تطابق کامل و پوشش کامل در تمام 10 اصل",null,null,null,{"$f":"IF(E7=1,TRUE,FALSE)","v":false}]
[null," 2- برنامه منفرد DRR منطبق با چارچوب سندای و پرداختن به 10 اصل",null,null,null,{"$f":"IF(E7=2,TRUE,FALSE)","v":false}]
[null,"1- طرح هایی که در راستای چارچوب سندای حرکت می کند و برخی از 10 اصل را پوشش می دهد",null,null,null,{"$f":"IF(E7=3,TRUE,FALSE)","v":false}]
[null," 0- عدم برنامه ریزی/انطباق",null,null,null,{"$f":"IF(E7=4,TRUE,FALSE)","v":false}]
[null,"Actions to achieve maximum resilience       اقدامات برای دستیابی به حداکثر تاب آوری","Responsible institution    سازمان مسئول","Timescale  زمانبندی"]
[]
[]
[null,"P1.2 - Organization, coordination and participation    سازماندهی، هماهنگی، مشارکت"]
[null,"Question   سوال","Comments   توضیحات"]
[]
[null,"Response      پاسخ","Provide means of verification (explanation and evidence)\nارائه مستندات و شواهد"]
[null," 3- همه تیم های هدایت و رهبری، برای اقدام موثر و مناسب در تمام مراحل DRR به درستی ایجاد شده اند.",null,null,null,{"$f":"IF(E18=1,TRUE,FALSE)","v":false}]
[null,"2- همه تیم های هدایت و رهبری به خوبی ایجاد شده اند، به درستی منابع لازم را در اختیار دارند و دارای قدرت مناسب برای عمل هستند \nاما در تامین منابع در طول مراحل کلیدی DRR ناهماهنگی هایی وجود دارد.\n",null,null,null,{"$f":"IF(E18=2,TRUE,FALSE)","v":false}]
[null,"1- تیم های شهر دارای قدرت و توانایی بالقوه هستند اما حمایت بین نهادی و یا منابع لازم را ندارند , و یا منابع آنها محدود است.",null,null,null,{"$f":"IF(E18=3,TRUE,FALSE)","v":false}]
[null,"0- سازمان های اصلی فاقد قدرت مناسب بوده و یا منابع آنها محدود می باشد.",null,null,null,{"$f":"IF(E18=4,TRUE,FALSE)","v":false}]
[null,"Actions to achieve maximum resilience  اقدامات برای دستیابی به حداکثر تاب آوری","Responsible institution  سازمان مسئول","Timescale  زمانبندی"]
[]
[]
[null,"P1.3 - Integration   یکپارچگی"]
[null,"Question     سوال","Comments"]
[]
[null,"Response  پاسخ","Provide means of verification (explanation and evidence)\nارائه مستندات و شواهد"]
[null,"3- تصمیم گیری های صریح یا نیمه صریح برای تاب آوری در فرآیندهای تصمیم گیری، در همه سیاست ها و پیشنهاد بودجه \nدر تمام حوزه های عملیاتی مرتبط اعمال می شود.",null,null,null,{"$f":"IF(E29=1,TRUE,FALSE)","v":false}]
[null,"2- هیچ فرآیند رسمی وجود ندارد اما مزایای تاب آوری در بحران عموما در تهیه طرح ها \"مفید\" تلقی می شود.",null,null,null,{"$f":"IF(E29=2,TRUE,FALSE)","v":false}]
[null,"1- گاهی اوقات",null,null,null,{"$f":"IF(E29=3,TRUE,FALSE)","v":false}]
[null,"0- اعمال نشده است",null,null,null,{"$f":"IF(E29=4,TRUE,FALSE)","v":false}]
[null,"Actions to achieve maximum resilience   اقدامات برای دستیابی به حداکثر تاب آوری","Responsible institution  سازمان مسئول","Timescale  زمانبندی"]

{"sheet":"E02","index":4,"n_rows":55,"n_cols":6,"rows_kept":55,"cut":false,"hidden":false,"merged":[[3,2,3,3],[4,2,4,3],[5,2,5,3],[6,2,9,3],[47,2,47,3],[48,2,48,3],[49,2,49,3],[50,2,53,3],[14,2,14,3],[15,2,15,3],[36,2,36,3],[37,2,37,3],[38,2,38,3],[39,2,42,3],[16,2,16,3],[17,2,20,3],[25,2,25,3],[26,2,26,3],[27,2,27,3],[28,2,31,3]]}
[]
[]
[null,"P2.1 - Hazard assessment     ارزیابی مخاطره"]
[null,"Question   سوال","Comments   توضیحات"]
[]
[null,"Response   پاسخ","Provide means of verification (explanation and evidence)\nارائه مستندات و شواهد"]
[null,"3- شهر مخاطرات اصلی را می داند. اطلاعات مخاطرات در فواصل زمانی مشخص به روز می شود.",null,null,null,{"$f":"IF(E7=1,TRUE,FALSE)","v":false}]
[null,"2- شهر مخاطرات اصلی را می داند اما هیچ برنامه مشخصی برای به روزرسانی این اطلاعات وجود ندارد.",null,null,null,{"$f":"IF(E7=2,TRUE,FALSE)","v":false}]
[null,"1- داده ها در اغلب مخاطرات اصلی وجود دارد.",null,null,null,{"$f":"IF(E7=3,TRUE,FALSE)","v":false}]
[null,"0- مخاطرات به خوبی شناسایی نشده است.",null,null,null,{"$f":"IF(E7=4,TRUE,FALSE)","v":false}]
[null,"Actions to achieve maximum resilience   اقدامات برای دستیابی به حداکثر تاب آوری","Responsible institution   سازمان مسئول","Timescale  زمانبندی"]
[]
[]
[null,"P2.2 - Shared understanding of infrastructure risk    درک مشترک از ریسک زیرساخت ها"]
[null,"Question  سوال","Comments  توضیحات"]
[]
[null,"Response   پاسخ","Provide means of verification (explanation and evidence)\nارائه مستندات و شواهد"]
[null,"3- درک مشترکی از مخاطرات بین شهر و ارائه دهندگان خدمات مختلف وجود دارد،\n نقاط وابستگی های متقابل بین سیستم/ریسک های موجود در مقیاس شهر تائید می شوند.",null,null,null,{"$f":"IF(E18=1,TRUE,FALSE)","v":false}]
[null,"2- به اشتراک گذاری اطلاعات ریسک بین شهر و ارائه دهندگان خدمات مختلف و اجماع در مورد نقاط پرخطر وجود دارد.",null,null,null,{"$f":"IF(E18=2,TRUE,FALSE)","v":false}]
[null,"1- ریسک های سیستم به صورت مجزا شناسایی شده است اما هیچ انجمنی برای به اشتراک گذاری و یا ایجاد درک مشترک از تاثیر آبشاری آنها وجود ندارد.",null,null,null,{"$f":"IF(E18=3,TRUE,FALSE)","v":false}]
[null,"0- شکاف های قابل توجهی در درک ریسک ها حتی در سیستم های منفرد وجود دارد(به عنوان مثال برق، آب، حمل و نقل و ...).",null,null,null,{"$f":"IF(E18=4,TRUE,FALSE)","v":false}]
[null,"Actions to achieve maximum resilience  اقدامات برای دستیابی به حداکثر تاب آوری","Responsible institution   سازمان مسئول","Timescale  زمانبندی"]
[]
[]
[null,"P2.3 - Knowledge of exposure and vulnerability   دانش در معرض خطرقرارگیری و آسیب‌پذیری\n"]
[null,"Question  سوال","Comments  توضیحات"]
[]
[null,"Response  پاسخ","Provide means of verification (explanation and evidence)\nارائه مستندات و شواهد"]
[null,"3- یک مجموعه جامع از سناریوهای حوادث در دسترس است، با اطلاعات پس زمینه ای مناسب و یادداشت های پشتیبانی",null,null,null,{"$f":"IF(E29=1,TRUE,FALSE)","v":false}]
[null,"2- مجموعه جامع از سناریوهای مختلف وجود دارد، هیچ اطلاعات پس زمینه ای مناسب یا یادداشت های پشتیبانی \nبرای پشتیبانی از این سناریوها وجود ندارد",null,null,null,{"$f":"IF(E29=2,TRUE,FALSE)","v":false}]
[null,"1- اطلاعات سناریو بحران در دسترس است.",null,null,null,{"$f":"IF(E29=3,TRUE,FALSE)","v":false}]
[null,"0- اطلاعات سناریو بحران در دسترس نیست.",null,null,null,{"$f":"IF(E29=4,TRUE,FALSE)","v":false}]
[null,"Actions to achieve maximum resilience  اقدامات برای دستیابی به حداکثر تاب آوری","Responsible institution  سازمان های مسئول","Timescale زمانبندی"]
[]
[]
[null,"P2.4 - Cascading impacts   تاثیرات آبشاری"]
[null,"Question  سوال","Comments  توضیحات"]
[]
[null,"Response  پاسخ","Provide means of verification (explanation and evidence)\nارائه مستندات و شواهد"]
[null,"3- درک نسبتاً کامل / جامع اثرات آبشاری تحت سناریوهای بحران متعدد.",null,null,null,{"$f":"IF(E40=1,TRUE,FALSE)","v":false}]
[null,"2- درک نسبتاً کامل / جامع اثرات آبشاری تحت برخی سناریوهای بحران",null,null,null,{"$f":"IF(E40=2,TRUE,FALSE)","v":false}]
[null,"1- درک اثر آبشاری تحت برخی سناریوهای بحران",null,null,null,{"$f":"IF(E40=3,TRUE,FALSE)","v":false}]
[null,"0- هیچ درک روشنی از اثرات آبشاری وجود ندارد.",null,null,null,{"$f":"IF(E40=4,TRUE,FALSE)","v":false}]
[null,"Actions to achieve maximum resilience اقدامات برای دستیابی به حداکثر تاب آوری","Responsible institution سازمان مسئول","Timescale زمانبندی"]
[]
[]
[null,"P2.5 - Presentation and update process for risk information فرآیند ارائه و به‌هنگام‌سازی اطلاعات ریسک"]
[null,"Question  سوال","Comments  توضیحات"]
[]
[null,"Response  پاسخ","Provide means of verification (explanation and evidence)\nارائه مستندات و شواهد"]
[null,"3- نقشه‌های مخاطره کیفیت بالا برای اغلب مخاطرات وجود دارند و به طور منظم به روز می‌شوند (در فواصل معین).",null,null,null,{"$f":"IF(E51=1,TRUE,FALSE)","v":false}]
[null,"2- نقشه‌های مخاطره برای بسیاری از مخاطرات وجود دارند، برنامه‌های به روز رسانی مشخص نیست.",null,null,null,{"$f":"IF(E51=2,TRUE,FALSE)","v":false}]
[null,"1- نقشه مخاطره برای برخی مخاطرات وجود دارد.",null,null,null,{"$f":"IF(E51=3,TRUE,FALSE)","v":false}]
[null,"0- هیچ نقشه مخاطره ای وجود ندارد.",null,null,null,{"$f":"IF(E51=4,TRUE,FALSE)","v":false}]
[null,"Actions to achieve maximum resilience  اقدامات برای دستیابی به حداکثر تاب آوری","Responsible institution سازمان مسئول","Timescale زمانبندی"]

{"sheet":"E03","index":5,"n_rows":44,"n_cols":6,"rows_kept":44,"cut":false,"hidden":false,"merged":[[15,2,15,3],[3,2,3,3],[4,2,4,3],[5,2,5,3],[6,2,9,3],[14,2,14,3],[36,2,36,3],[37,2,37,3],[38,2,38,3],[39,2,42,3],[16,2,16,3],[17,2,20,3],[25,2,25,3],[26,2,26,3],[27,2,27,3],[28,2,31,3]]}
[]
[]
[null,"P3.1 -  Knowledge of approaches for attracting new investment to the city  دانش مربوط به رویکردهای جذب سرمایه‌گذاری جدید برای شهر "]
[null,"Question  سوال","Comments توضیحات"]
[]
[null,"Response  پاسخ","Provide means of verification (explanation and evidence)\nارائه مستندات و شواهد"]
[null,"3- این شهر همه مسیرها را برای تامین بودجه فعالیت‌های DRR آگاهی دارد و به طور فعال گستره‌ای از این فعالیت‌ها را دنبال می‌کند و موفقیت‌هایی نیز داشته‌است.",null,null,null,{"$f":"IF(E7=1,TRUE,FALSE)","v":false}]
[null,"2- این شهر از مسیرهای متعددی برای تأمین بودجه برای فعالیت های DRR آگاهی دارد و فعالانه در حال پی‌گیری طیف وسیعی از اینها است.",null,null,null,{"$f":"IF(E7=2,TRUE,FALSE)","v":false}]
[null,"1- در اینجا نشانه‌هایی از مسیر سرمایه‌گذاری وجود دارد، اما تصویر ناقص است و برای دنبال کردن این سرمایه‌ها کار کمی انجام می‌شود.",null,null,null,{"$f":"IF(E7=3,TRUE,FALSE)","v":false}]
[null,"0- درک / آگاهی کمی از منابع موجود تامین بودجه برای DRR وجود دارد.",null,null,null,{"$f":"IF(E7=4,TRUE,FALSE)","v":false}]
[null,"Actions to achieve maximum resilience   اقدامات برای دستیابی به حداکثر تاب آوری","Responsible institution   سازمان مسئول","Timescale  زمانبندی"]
[]
[]
[null,"برنامه مالی و بودجه برای تاب آوری، از جمله بودجه احتمالی  P3.2 - Financial plan and budget for resilience, including contingency fund"]
[null,"Question سوال","Comments توضیحات"]
[]
[null,"Response پاسخ","Provide means of verification (explanation and evidence)\nارائه مستندات و شواهد"]
[null,"3- برنامه مالی شهر در رابطه با DRR جامع است، بودجه های لازم اختصاص داده شده اند و برنامه های احتمالی در آن قرار دارند.",null,null,null,{"$f":"IF(E18=1,TRUE,FALSE)","v":false}]
[null,"2- برنامه مالی شهر اجازه می دهد تا برای فعالیت های DRR، بودجه هایی اختصاص داده شود.",null,null,null,{"$f":"IF(E18=2,TRUE,FALSE)","v":false}]
[null,"1- برنامه هایی در سازمان ها / سازمان های مختلف وجود دارد، اما آنها هماهنگ نیستند.",null,null,null,{"$f":"IF(E18=3,TRUE,FALSE)","v":false}]
[null,"0-هیچ برنامه ای روشن نیست",null,null,null,{"$f":"IF(E18=4,TRUE,FALSE)","v":false}]
[null,"Actions to achieve maximum resilience   اقدامات برای دستیابی به حداکثر تاب آوری","Responsible institution   سازمان مسئول","Timescale  زمانبندی"]
[]
[]
[null,"P3.3 - Insurance بیمه"]
[null,"Question سوال","Comments توضیحات"]
[]
[null,"Response پاسخ","Provide means of verification (explanation and evidence)\nارائه مستندات و شواهد"]
[null,"3- جذب محصولات بیمه در تمام بخش ها / خدمات بالا است.",null,null,null,{"$f":"IF(E29=1,TRUE,FALSE)","v":false}]
[null,"2- سطح بیمه به میزان قابل توجهی در بخش یا منطقه متفاوت است. این شهر به طور فعال پوشش بیمه در تمام بخش ها را ترویج می کند.",null,null,null,{"$f":"IF(E29=2,TRUE,FALSE)","v":false}]
[null,"1- سطح بیمه به میزان قابل توجهی در بخش یا منطقه متفاوت است. این شهر به طور فعال در ترویج جذب بیشتر محصولات بیمه نیست.",null,null,null,{"$f":"IF(E29=3,TRUE,FALSE)","v":false}]
[null,"0- بیمه کم یا بدون پوشش در شهر وجود دارد.",null,null,null,{"$f":"IF(E29=4,TRUE,FALSE)","v":false}]
[null,"Actions to achieve maximum resilience   اقدامات برای دستیابی به حداکثر تاب آوری","Responsible institution   سازمان مسئول","Timescale  زمانبندی"]
[]
[]
[null,"P3.4 - Incentives مشوق‌ها"]
[null,"Question سوال","Comments توضیحات"]
[]
[null,"Response پاسخ","Provide means of verification (explanation and evidence)\nارائه مستندات و شواهد"]
[null,"3- طیف وسیعی از مشوق ها  در تمام بخش‌ها به منظور افزایش تاب آوری و نیازهای شناخته‌شده آن‌ وجود دارد.",null,null,null,{"$f":"IF(E40=1,TRUE,FALSE)","v":false}]
[null,"2- مشوق های مختلف برای افزایش تاب آوری در تمام بخش‌ها وجود دارد، اما شکاف / فرصت‌های شناخته‌شده ای وجود دارد.",null,null,null,{"$f":"IF(E40=2,TRUE,FALSE)","v":false}]
[null,"1- برخی مشوق ها وجود دارند، اما گسسته است.",null,null,null,{"$f":"IF(E40=3,TRUE,FALSE)","v":false}]
[null,"0- تعداد کمی یا هیچ مشوقی وجود ندارد.",null,null,null,{"$f":"IF(E40=4,TRUE,FALSE)","v":false}]
[null,"Actions to achieve maximum resilience   اقدامات برای دستیابی به حداکثر تاب آوری","Responsible institution   سازمان مسئول","Timescale  زمانبندی"]

{"sheet":"E04","index":6,"n_rows":44,"n_cols":6,"rows_kept":44,"cut":false,"hidden":false,"merged":[[15,2,15,3],[3,2,3,3],[4,2,4,3],[5,2,5,3],[6,2,9,3],[14,2,14,3],[36,2,36,3],[37,2,37,3],[38,2,38,3],[39,2,42,3],[16,2,16,3],[17,2,20,3],[25,2,25,3],[26,2,26,3],[27,2,27,3],[28,2,31,3]]}
[]
[]
[null,"P4.1- Land use zoning پهنه‌بندی کاربری زمین "]
[null,"Question سوال","Comments توضیحات "]
[]
[null,"Response پاسخ","Provide means of verification (explanation and evidence)\nارائه مستندات و شواهد"]
[null,"3- این شهر با استفاده از پهنه بندی کاربری اراضی ایجاد شده‌است و با مخاطرات و نقشه‌ مخاطرات ارتباط دارد(اصل 2 را ببینید). منطقه‌بندی در فواصل زمانی توافق‌شده به روز می‌شود.",null,null,null,{"$f":"IF(E7=1,TRUE,FALSE)","v":false}]
[null,"2- این شهر برپایه کاربری زمین ایجاد شده‌است و با مخاطرات و نقشه مخاطرات ارتباط دارد (اصل 2 را ببینید). برنامه‌هایی برای به روز رسانی این منطقه‌بندی به خوبی شناسایی نشده است.",null,null,null,{"$f":"IF(E7=2,TRUE,FALSE)","v":false}]
[null,"1- منطقه‌بندی نه چندان کامل / کامل نیست و بطور منظم در برابر مخاطرات / ریسک مورد بررسی قرار نمی‌گیرد.",null,null,null,{"$f":"IF(E7=3,TRUE,FALSE)","v":false}]
[null,"0- منطقه‌بندی شناخته شده/ مشخص نیست.",null,null,null,{"$f":"IF(E7=4,TRUE,FALSE)","v":false}]
[null,"Actions to achieve maximum resilience   اقدامات برای دستیابی به حداکثر تاب آوری","Responsible institution   سازمان مسئول","Timescale  زمانبندی"]
[]
[]
[null,"P4.2 New urban development توسعه شهری جدید"]
[null,"Question سوال","Comments توضیحات"]
[]
[null,"Response پاسخ","Provide means of verification (explanation and evidence)\nارائه مستندات و شواهد"]
[null,"3- سیاست روشن در سطح شهر وجود دارد. دستورالعمل‌هایی برای محدوده‌ای از افراد حرفه‌ای تهیه شده‌است (به عنوان مثال معماران، معماران منظره، مهندسین و غیره).",null,null,null,{"$f":"IF(E18=1,TRUE,FALSE)","v":false}]
[null,"2- سیاست وجود دارد، اما دستورالعمل ها ناکافی است.",null,null,null,{"$f":"IF(E18=2,TRUE,FALSE)","v":false}]
[null,"1- رویکردهای تاب آوری ارتقا یافته است، اما نه به شیوه ای سازگار و نه با سیاست شهر.",null,null,null,{"$f":"IF(E18=3,TRUE,FALSE)","v":false}]
[null,"0- کم/هیچ ارتقائی در تاب آوری در توسعه شهری جدید",null,null,null,{"$f":"IF(E18=4,TRUE,FALSE)","v":false}]
[null,"Actions to achieve maximum resilience   اقدامات برای دستیابی به حداکثر تاب آوری","Responsible institution   سازمان مسئول","Timescale  زمانبندی"]
[]
[]
[null,"P4.3 - Building codes and standards دستورالعمل های ساختمان و استانداردها"]
[null,"Question سوال","Comments توضیحات"]
[]
[null,"Response پاسخ","Provide means of verification (explanation and evidence)\nارائه مستندات و شواهد"]
[null,"3- دستورالعمل و استانداردهای محلی وجود دارند؛ این آدرس تمامی مخاطرات شهر را نشان می‌دهد و به طور منظم به روز می‌شود.",null,null,null,{"$f":"IF(E29=1,TRUE,FALSE)","v":false}]
[null,"2- دستورالعمل و استانداردهای محلی وجود دارند؛ این آدرس مخاطرات اصلی شهر را نشان می‌دهد و به طور منظم به روز می‌شود.",null,null,null,{"$f":"IF(E29=2,TRUE,FALSE)","v":false}]
[null,"1- برخی از دستورالعمل ها وجود دارند که برخی از مخاطرات را پوشش می‌دهند. هیچ برنامه شفافی برای به روز رسانی این کدها وجود ندارد.",null,null,null,{"$f":"IF(E29=3,TRUE,FALSE)","v":false}]
[null,"0- هیچ استفاده واقعی از دستورالعمل ها و استانداردهای ساختمان مربوطه وجود ندارد.",null,null,null,{"$f":"IF(E29=4,TRUE,FALSE)","v":false}]
[null,"Actions to achieve maximum resilience   اقدامات برای دستیابی به حداکثر تاب آوری","Responsible institution   سازمان مسئول","Timescale  زمانبندی"]
[]
[]
[null,"P4.4 - Application of zoning, building codes and standards کاربرد پهنه بندی، قوانین ساختمان و استانداردها"]
[null,"Question سوال","Comments توضیحات"]
[]
[null,"Response پاسخ","Provide means of verification (explanation and evidence)\nارائه مستندات و شواهد"]
[null,"3- پهنه ها و دستورالعمل های ساختمانی ۱۰۰ % اعمال‌شده و مورد تایید قرار می‌گیرند.",null,null,null,{"$f":"IF(E40=1,TRUE,FALSE)","v":false}]
[null,"2- پهنه ها و دستورالعمل های ساختمانی در بیش از ۵۰ درصد موارد اعمال و مورد تایید قرار می‌گیرند.",null,null,null,{"$f":"IF(E40=2,TRUE,FALSE)","v":false}]
[null,"1- کاربرد پهنه های موجود و دستورالعمل های ساختمان جزیی و / یا متناقض است.",null,null,null,{"$f":"IF(E40=3,TRUE,FALSE)","v":false}]
[null,"0-هیچ تمرکز واقعی بر اجرای پهنه ها و دستورالعمل ساختمان وجود ندارد.",null,null,null,{"$f":"IF(E40=4,TRUE,FALSE)","v":false}]
[null,"Actions to achieve maximum resilience   اقدامات برای دستیابی به حداکثر تاب آوری","Responsible institution   سازمان مسئول","Timescale  زمانبندی"]

{"sheet":"E05","index":7,"n_rows":33,"n_cols":6,"rows_kept":33,"cut":false,"hidden":false,"merged":[[28,2,31,3],[3,2,3,3],[4,2,4,3],[5,2,5,3],[6,2,9,3],[14,2,14,3],[15,2,15,3],[16,2,16,3],[17,2,20,3],[25,2,25,3],[26,2,26,3],[27,2,27,3]]}
[]
[]
[null,"P5.1 - Awareness and understanding of ecosystem services / functions  آگاهی و درک خدمات / وظایف اکو سیستم"]
[null,"Question سوال","Comments توضیحات "]
[]
[null,"Response پاسخ","Provide means of verification (explanation and evidence)\nارائه مستندات و شواهد"]
[null,"3- شهر و ذینفعان کلیدی با استفاده از اصطلاح خدمات اکوسیستم آشنا هستند و همه ارزش های اقتصادی را که توسط منابع اصلی کلیدی محلی ارائه می شود درک می کنند و ارزش اقتصادی دارند.",null,null,null,{"$f":"IF(E7=1,TRUE,FALSE)","v":false}]
[null,"2- شهر و ذینفعان کلیدی اکثریت عملکردهای ارایه‌شده توسط سرمایه‌های طبیعی محلی را درک می‌کنند. اینها به لحاظ اقتصادی به ارزش نیستند.",null,null,null,{"$f":"IF(E7=2,TRUE,FALSE)","v":false}]
[null,"1- یکپارچگی، آگاهی و درک از عملکرد ارائه شده توسط سرمایه های طبیعی شهرستانها وجود دارد.",null,null,null,{"$f":"IF(E7=3,TRUE,FALSE)","v":false}]
[null,"0- خیلی کم / هیچ آگاهی از این موضوع در شهر نیست.",null,null,null,{"$f":"IF(E7=4,TRUE,FALSE)","v":false}]
[null,"Actions to achieve maximum resilience   اقدامات برای دستیابی به حداکثر تاب آوری","Responsible institution   سازمان مسئول","Timescale  زمانبندی"]
[]
[]
[null,"P5.2 - Integration of green and blue infrastructure into city policy and projects  ادغام زیرساخت سبز و آبی در سیاست و پروژه‌های شهری"]
[null,"Question سوال","Comments توضیحات "]
[]
[null,"Response پاسخ","Provide means of verification (explanation and evidence)\nارائه مستندات و شواهد"]
[null,"3- زیرساخت سبز و آبی در پروژه‌های بزرگ توسعه شهری و پروژه‌های زیربنایی از طریق سیاست و حمایت از مواد راهنما در شهر ارتقا داده می‌شود.",null,null,null,{"$f":"IF(E18=1,TRUE,FALSE)","v":false}]
[null,"2- زیرساخت سبز و آبی از طریق سیاست ترویج داده می‌شود، اما راهنمایی‌های حمایتی کمی برای افراد حرفه‌ای وجود دارد.",null,null,null,{"$f":"IF(E18=2,TRUE,FALSE)","v":false}]
[null,"1- برخی از زیرساخت سبز و آبی ترویج داده شده‌است، اما این امر جهانی نیست و توسط سیاست ها حمایت نمی‌شود.",null,null,null,{"$f":"IF(E18=3,TRUE,FALSE)","v":false}]
[null,"0- هیچ انگیزه‌ای برای ترویج زیرساخت سبز در پروژه‌های جدید توسعه شهری یا پروژه‌های زیربنایی وجود ندارد.",null,null,null,{"$f":"IF(E18=4,TRUE,FALSE)","v":false}]
[null,"Actions to achieve maximum resilience   اقدامات برای دستیابی به حداکثر تاب آوری","Responsible institution   سازمان مسئول","Timescale  زمانبندی"]
[]
[]
[null,"P5.3 - Transboundary environmental issues مسائل زیست محیطی مرزی"]
[null,"Question سوال","Comments توضیحات "]
[]
[null,"Response پاسخ","Provide means of verification (explanation and evidence)\nارائه مستندات و شواهد"]
[null,"3- این شهر از اهمیت سرمایه طبیعی فراتر از مرزهای اداری خود آگاه است و برنامه ای برای اداره امور همسایگی برای حمایت از حفاظت و مدیریت این دارایی ها دارد.",null,null,null,{"$f":"IF(E29=1,TRUE,FALSE)","v":false}]
[null,"2- این شهر از فعالیت های ارائه شده توسط سرمایه طبیعی فراتر از مرزهای اداری شهر آگاه است. بحث های اولیه در مورد ادارات همسایه وجود داشته است.",null,null,null,{"$f":"IF(E29=2,TRUE,FALSE)","v":false}]
[null,"1- این شهر دارای آگاهی از عملکردهای ارائه شده توسط سرمایه طبیعی در خارج از مرزهای اداری شهر است، اما اقداماتی را انجام نداده است.",null,null,null,{"$f":"IF(E29=3,TRUE,FALSE)","v":false}]
[null,"0- کمی تا هیچ آگاهی.",null,null,null,{"$f":"IF(E29=4,TRUE,FALSE)","v":false}]
[null,"Actions to achieve maximum resilience   اقدامات برای دستیابی به حداکثر تاب آوری","Responsible institution   سازمان مسئول","Timescale  زمانبندی"]

{"sheet":"E06","index":8,"n_rows":66,"n_cols":6,"rows_kept":66,"cut":false,"hidden":false,"merged":[[28,2,31,3],[3,2,3,3],[4,2,4,3],[5,2,5,3],[6,2,9,3],[14,2,14,3],[15,2,15,3],[16,2,16,3],[17,2,20,3],[25,2,25,3],[26,2,26,3],[27,2,27,3],[61,2,64,3],[36,2,36,3],[37,2,37,3],[38,2,38,3],[39,2,42,3],[47,2,47,3],[48,2,48,3],[49,2,49,3],[50,2,53,3],[58,2,58,3],[59,2,59,3],[60,2,60,3]]}
[]
[]
[null,"P6.1 - Skills and experience مهارت‌ها و تجربیات"]
[null,"Question سوال","Comments توضیحات "]
[]
[null,"Response پاسخ","Provide means of verification (explanation and evidence)\nارائه مستندات و شواهد"]
[null,"3- خود شهر دسترسی سریعی به تمام مهارت‌ها / تجربه و منابع مورد نیاز برای پاسخ به سناریوهای بحرانی شناسایی‌شده دارد.",null,null,null,{"$f":"IF(E7=1,TRUE,FALSE)","v":false}]
[null,"2- این شهر دسترسی سریعی به بسیاری از مهارت‌ها / تجربه و منابع مورد نیاز برای پاسخ به سناریوهای بحرانی شناسایی‌شده دارد؛ دیگر مهارت‌های مورد نیاز را \nمی‌توان از شهرهای مجاور / شهرستان / مناطق بدست آورد.",null,null,null,{"$f":"IF(E7=2,TRUE,FALSE)","v":false}]
[null,"1- این شهر می‌تواند به بسیاری از مهارت‌ها / تجربه و منابعی که برای پاسخ به سناریوهای بحرانی شناسایی‌شده نیاز دارد، دسترسی داشته باشد، اما کمی شکاف وجود دارد.",null,null,null,{"$f":"IF(E7=3,TRUE,FALSE)","v":false}]
[null,"0- شکاف‌های قابل‌توجهی در مهارت‌ها / تجربه / منابعی وجود دارد که شهر می‌تواند به سرعت به پاسخگویی به سناریوهای شناسایی‌شده دسترسی داشته باشد.",null,null,null,{"$f":"IF(E7=4,TRUE,FALSE)","v":false}]
[null,"Actions to achieve maximum resilience   اقدامات برای دستیابی به حداکثر تاب آوری","Responsible institution   سازمان مسئول","Timescale  زمانبندی"]
[]
[]
[null,"P6.2 - Public education and awareness آموزش عمومی و آگاهی"]
[null,"Question سوال","Comments توضیحات "]
[]
[null,"Response پاسخ","Provide means of verification (explanation and evidence)\nارائه مستندات و شواهد"]
[null,"3- برنامه‌ها و کمپین های هماهنگ (PR و آموزش) برای اطمینان از انتشار صحیح مخاطرات، ریسک و اطلاعات بحران وجود دارد. پیغام‌های کلیدی به بیش از ۷۵ % جمعیت شهر می‌رسند.",null,null,null,{"$f":"IF(E18=1,TRUE,FALSE)","v":false}]
[null,"2- برنامه‌ها و کمپین های هماهنگ (PR و آموزش) برای اطمینان از انتشار صحیح مخاطرات، ریسک و اطلاعات بحران وجود دارد. پیغام‌های کلیدی به بیش از 50 % جمعیت شهر می‌رسند.",null,null,null,{"$f":"IF(E18=2,TRUE,FALSE)","v":false}]
[null,"1- برخی از برنامه ها / کانال های مفید برای انتشار اطلاعات مخاطره، ریسک و بحران وجود دارد، اما ارتقاء به بخش بیشتری از مردم، امکان پذیر است. این امکان 25٪ از جمعیت شهر رسیده است.",null,null,null,{"$f":"IF(E18=3,TRUE,FALSE)","v":false}]
[null,"0- سیستم‌های پخش اطلاعات مهم در مورد خطر بحران به طور کامل ناکافی هستند.",null,null,null,{"$f":"IF(E18=4,TRUE,FALSE)","v":false}]
[null,"Actions to achieve maximum resilience   اقدامات برای دستیابی به حداکثر تاب آوری","Responsible institution   سازمان مسئول","Timescale  زمانبندی"]
[]
[]
[null,"P6.3 - Data sharing به اشتراک گذاری داده"]
[null,"Question سوال","Comments توضیحات "]
[]
[null,"Response پاسخ","Provide means of verification (explanation and evidence)\nارائه مستندات و شواهد"]
[null,"3- این شهر دارای پورتال (یا روش دیگری) برای کنار هم آوردن تعداد زیادی از مجموعه‌های داده شهری است که برای ساختن تصویری از تاب آوری شهر مفید است.",null,null,null,{"$f":"IF(E29=1,TRUE,FALSE)","v":false}]
[null,"2- این شهر کار خوبی در پیدا کردن و به اشتراک گذاری لایه‌های اطلاعاتی برای افزایش تاب آوری در بخش یا منطقه خاص انجام داده‌است.",null,null,null,{"$f":"IF(E29=2,TRUE,FALSE)","v":false}]
[null,"1- برخی از این لایه‌ها در دسترس نیستند، اما داده‌ها خام هستند و نیاز به تفسیر دارند.",null,null,null,{"$f":"IF(E29=3,TRUE,FALSE)","v":false}]
[null,"0- اطلاعات شهری مفید یا کمی در دسترس / به اشتراک گذاشته شده‌است.",null,null,null,{"$f":"IF(E29=4,TRUE,FALSE)","v":false}]
[null,"Actions to achieve maximum resilience   اقدامات برای دستیابی به حداکثر تاب آوری","Responsible institution   سازمان مسئول","Timescale  زمانبندی"]
[]
[]
[null,"P6.4 - Training delivery آموزش"]
[null,"Question سوال","Comments توضیحات "]
[]
[null,"Response پاسخ","Provide means of verification (explanation and evidence)\nارائه مستندات و شواهد"]
[null,"3- دوره‌های آموزشی تحت پوشش ریسک، تاب آوری و واکنش بحران در همه بخش‌های شهر از جمله دولت، تجارت، سازمان‌های غیر دولتی و جامعه برگزار می‌شود",null,null,null,{"$f":"IF(E40=1,TRUE,FALSE)","v":false}]
[null,"2- این شهر سابقه ارائه آموزش به برخی از بخش‌ها را دارد، اما بخش‌های دیگر فاقد آموزش و تعامل هستند.",null,null,null,{"$f":"IF(E40=2,TRUE,FALSE)","v":false}]
[null,"1- برخی از ماژول های آموزشی موجود است. پوشش و محتوا باید به طور قابل توجهی بهبود یابد.",null,null,null,{"$f":"IF(E40=3,TRUE,FALSE)","v":false}]
[null,"0- هیچ آموزش مرتبطی وجود ندارد که برای شهر مناسب باشد.",null,null,null,{"$f":"IF(E40=4,TRUE,FALSE)","v":false}]
[null,"Actions to achieve maximum resilience   اقدامات برای دستیابی به حداکثر تاب آوری","Responsible institution   سازمان مسئول","Timescale  زمانبندی"]
[]
[]
[null,"P6.5 - Languages زبان‌ها"]
[null,"Question سوال","Comments توضیحات "]
[]
[null,"Response پاسخ","Provide means of verification (explanation and evidence)\nارائه مستندات و شواهد"]
[null,"3- تمام مطالب آموزشی به همه زبان‌های  متداول در شهر وجود دارد.",null,null,null,{"$f":"IF(E51=1,TRUE,FALSE)","v":false}]
[null,"2- تمام مطالب آموزشی در اغلب زبان‌های رایج در شهر در دسترس هستند.",null,null,null,{"$f":"IF(E51=2,TRUE,FALSE)","v":false}]
[null,"1- تمام مطالب آموزشی در برخی از زبان‌های رایج در شهر در دسترس هستند.",null,null,null,{"$f":"IF(E51=3,TRUE,FALSE)","v":false}]
[null,"0- هیچ ترجمه ای انجام نشده است",null,null,null,{"$f":"IF(E51=4,TRUE,FALSE)","v":false}]
[null,"Actions to achieve maximum resilience   اقدامات برای دستیابی به حداکثر تاب آوری","Responsible institution   سازمان مسئول","Timescale  زمانبندی"]
[]
[]
[null,"P6.6 - Learning from others  یادگیری از دیگران"]
[null,"Question سوال","Comments توضیحات "]
[]
[null,"Response پاسخ","Provide means of verification (explanation and evidence)\nارائه مستندات و شواهد"]
[null,"3- این شهر به طور فعالانه به دنبال تبادل دانش و یادگیری از شهرهای دیگر است که با چالش‌های مشابه روبرو هستند و در طیفی از شبکه‌ها فعال هستند تا این مساله را تسهیل کنند.",null,null,null,{"$f":"IF(E62=1,TRUE,FALSE)","v":false}]
[null,"2- این شهر اهمیت سهم دانش را درک کرده و عضویت در طیف وسیعی از شبکه‌های شهری را دارا می‌باشد. این شبکه‌ها برای حداکثر سود اهرمی نیستند.",null,null,null,{"$f":"IF(E62=2,TRUE,FALSE)","v":false}]
[null,"1- برخی اشتراک دانش بین شهرها اتفاق می‌افتد, اما گاهی اوقات.",null,null,null,{"$f":"IF(E62=3,TRUE,FALSE)","v":false}]
[null,"0- به اشتراک گذاری دانش متکی بر افراد است.",null,null,null,{"$f":"IF(E62=4,TRUE,FALSE)","v":false}]
[null,"Actions to achieve maximum resilience   اقدامات برای دستیابی به حداکثر تاب آوری","Responsible institution   سازمان مسئول","Timescale  زمانبندی"]

{"sheet":"E07","index":9,"n_rows":44,"n_cols":6,"rows_kept":44,"cut":false,"hidden":false,"merged":[[15,2,15,3],[3,2,3,3],[4,2,4,3],[5,2,5,3],[6,2,9,3],[14,2,14,3],[36,2,36,3],[37,2,37,3],[38,2,38,3],[39,2,42,3],[16,2,16,3],[17,2,20,3],[25,2,25,3],[26,2,26,3],[27,2,27,3],[28,2,31,3]]}
[]
[]
[null,"P7.1 - Community or “grassroots” organizations, networks and training جامعه یا سازمان‌های \"مردمی\"، شبکه‌ها و آموزش"]
[null,"Question سوال","Comments توضیحات "]
[]
[null,"Response پاسخ","Provide means of verification (explanation and evidence)\nارائه مستندات و شواهد"]
[null,"3- سازمان‌های اجتماعی که سهم قابل‌توجهی از جمعیت شهر را پوشش می‌دهند به طور فعال در برنامه‌ریزی اقدامات کاهش ریسک، برنامه‌ریزی پیش از رویداد و واکنش پس از رویداد در سراسر شهر مشارکت دارند.",null,null,null,{"$f":"IF(E7=1,TRUE,FALSE)","v":false}]
[null,"2- مشارکت در سازمان‌های مردمی متنوع، چه در برخی از مکان‌ها، یا در برخی جنبه‌های برنامه‌ریزی و یا پاسخ وجود دارد، اما جامع نیست.",null,null,null,{"$f":"IF(E7=2,TRUE,FALSE)","v":false}]
[null,"1- آگاهی در میان سازمان‌های کلیدی اصلی اهمیت DRR وجود دارد، آن‌ها از افزایش آگاهی حمایت می‌کنند اما مشارکت فعالی در پاسخ یا برنامه‌ریزی ندارند.",null,null,null,{"$f":"IF(E7=3,TRUE,FALSE)","v":false}]
[null,"0- مشارکت بسیار کمی از سازمان‌های مردم عادی در شهر وجود دارد.",null,null,null,{"$f":"IF(E7=4,TRUE,FALSE)","v":false}]
[null,"Actions to achieve maximum resilience   اقدامات برای دستیابی به حداکثر تاب آوری","Responsible institution   سازمان مسئول","Timescale  زمانبندی"]
[]
[]
[null,"P7.2 - Social networks “Leave no one behind” شبکه‌های اجتماعی هیچ‌کس را پشت سر نگذارید"]
[null,"Question سوال","Comments توضیحات "]
[]
[null,"Response پاسخ","Provide means of verification (explanation and evidence)\nارائه مستندات و شواهد"]
[null,"3- هر شش ماه برنامه آموزشی اجرا می‌شود.",null,null,null,{"$f":"IF(E18=1,TRUE,FALSE)","v":false}]
[null," 2- برنامه‌های آموزشی یک ساله برگزار می‌شود.",null,null,null,{"$f":"IF(E18=2,TRUE,FALSE)","v":false}]
[null,"1- بدون برنامه‌های آموزشی. اما نقشه از جمعیت آسیب‌پذیر جامعه در دسترس است.",null,null,null,{"$f":"IF(E18=3,TRUE,FALSE)","v":false}]
[null,"0- هیچ نقشه‌ ای از جمعیت آسیب‌پذیر اجتماعی وجود ندارد.",null,null,null,{"$f":"IF(E18=4,TRUE,FALSE)","v":false}]
[null,"Actions to achieve maximum resilience   اقدامات برای دستیابی به حداکثر تاب آوری","Responsible institution   سازمان مسئول","Timescale  زمانبندی"]
[]
[]
[null,"P7.3 - Private sector / employers بخش خصوصی / کارفرمایان"]
[null,"Question سوال","Comments توضیحات "]
[]
[null,"Response پاسخ","Provide means of verification (explanation and evidence)\nارائه مستندات و شواهد"]
[null,"3- 60%-100% حرفه ها",null,null,null,{"$f":"IF(E29=1,TRUE,FALSE)","v":false}]
[null,"2- 40%-60% حرفه ها",null,null,null,{"$f":"IF(E29=2,TRUE,FALSE)","v":false}]
[null,"1- 20%-40% حرفه ها",null,null,null,{"$f":"IF(E29=3,TRUE,FALSE)","v":false}]
[null,"0- 0- زیر 20% حرفه ها",null,null,null,{"$f":"IF(E29=4,TRUE,FALSE)","v":false}]
[null,"Actions to achieve maximum resilience   اقدامات برای دستیابی به حداکثر تاب آوری","Responsible institution   سازمان مسئول","Timescale  زمانبندی"]
[]
[]
[null,"P7.4 - Citizen engagement techniques روش های مشارکت شهروندان"]
[null,"Question سوال","Comments توضیحات "]
[]
[null,"Response پاسخ","Provide means of verification (explanation and evidence)\nارائه مستندات و شواهد"]
[null,"3- مشارکت از طریق چندین کانال رسانه (مثلا اجتماعی، رادیو، ایمیل، روزنامه، دستگاه تلفن همراه با هشدار فعال شده). موبایل برای جریان داده ورودی، \nمدیریت جمعیت و غیره استفاده می شود. نتیجه تماس های چندگانه هر شهروند در سال است.",null,null,null,{"$f":"IF(E40=1,TRUE,FALSE)","v":false}]
[null,"2- چندین کانال رسانه‌ای. هیچ مجموعه داده ورودی از موبایل وجود ندارد. اکثریت شهروندان در سال به چندین بار تماس رسیدند.",null,null,null,{"$f":"IF(E40=2,TRUE,FALSE)","v":false}]
[null,"1- برخی از کانال ها، به روز رسانی نیمه منظم.",null,null,null,{"$f":"IF(E40=3,TRUE,FALSE)","v":false}]
[null,"0- مشارکت شهروندی ضعیف یا غیرمستقیم در مورد DRR.",null,null,null,{"$f":"IF(E40=4,TRUE,FALSE)","v":false}]
[null,"Actions to achieve maximum resilience   اقدامات برای دستیابی به حداکثر تاب آوری","Responsible institution   سازمان مسئول","Timescale  زمانبندی"]

{"sheet":"E08","index":10,"n_rows":99,"n_cols":6,"rows_kept":99,"cut":false,"hidden":false,"merged":[[69,2,69,3],[70,2,70,3],[71,2,71,3],[72,2,75,3],[28,2,31,3],[3,2,3,3],[4,2,4,3],[5,2,5,3],[6,2,9,3],[14,2,14,3],[15,2,15,3],[16,2,16,3],[17,2,20,3],[25,2,25,3],[26,2,26,3],[27,2,27,3],[61,2,64,3],[36,2,36,3],[37,2,37,3],[38,2,38,3],[39,2,42,3],[47,2,47,3],[48,2,48,3],[49,2,49,3],[50,2,53,3],[58,2,58,3],[59,2,59,3],[60,2,60,3],[94,2,97,3],[80,2,80,3],[81,2,81,3],[82,2,82,3],[83,2,86,3],[91,2,91,3],[92,2,92,3],[93,2,93,3]]}
[]
[]
[null,"P8.1 - Critical infrastructure overview  مرور کلی زیرساخت های بحرانی"]
[null,"Question سوال","Comments توضیحات "]
[]
[null,"Response پاسخ","Provide means of verification (explanation and evidence)\nارائه مستندات و شواهد"]
[null,"3- این شهر دارای (و همکاری با سایر ذینفعان) یک طرح یا استراتژی زیرساختی مهم برای حفاظت از زیرساخت های حیاتی، خدمات آب و برق و خدمات خود است. \nاستراتژی ریسک/ تنش ها را برجسته می کند و شامل برنامه های تداوم برای خدمات ضروری می شود.",null,null,null,{"$f":"IF(E7=1,TRUE,FALSE)","v":false}]
[null,"2- یک انجمن زیرساختی حیاتی یا راه‌های دیگر برای ایجاد درک مشترک از ریسک بین شهر و ارائه دهندگان خدمات مختلف بر روی نقاط استرس بر روی سیستم / ریسک در مقیاس شهر وجود دارد.",null,null,null,{"$f":"IF(E7=2,TRUE,FALSE)","v":false}]
[null,"1- ریسک برای برخی از انواع زیرساخت اصلی مشخص می‌شوند.",null,null,null,{"$f":"IF(E7=3,TRUE,FALSE)","v":false}]
[null,"0- هیچ برنامه یا انجمنی وجود ندارد. ریسک‌های زیرساخت حیاتی در شهر بخوبی مشخص نمی‌شوند.",null,null,null,{"$f":"IF(E7=4,TRUE,FALSE)","v":false}]
[null,"Actions to achieve maximum resilience   اقدامات برای دستیابی به حداکثر تاب آوری","Responsible institution   سازمان مسئول","Timescale  زمانبندی"]
[]
[]
[null,"P8.2 - Protective  زیرساخت حفاظتی"]
[null,"Question سوال","Comments توضیحات "]
[]
[null,"Response پاسخ","Provide means of verification (explanation and evidence)\nارائه مستندات و شواهد"]
[null,"3- در تمام موارد زیر ساخت‌های حفاظتی در جای خود و سازگار با بهترین عملکرد برای طراحی و مدیریت دارایی، براساس اطلاعات مربوط به ریسک مربوطه است.",null,null,null,{"$f":"IF(E18=1,TRUE,FALSE)","v":false}]
[null,"2- در بیشتر موارد زیر ساخت‌های حفاظتی در جای خود و سازگار با بهترین عملکرد برای طراحی و مدیریت دارایی، براساس اطلاعات مربوط به ریسک مربوطه است.",null,null,null,{"$f":"IF(E18=2,TRUE,FALSE)","v":false}]
[null,"1- در برخی موارد زیر ساخت‌های حفاظتی در محل وجود دارد، اما برخی از زیرساخت های حفاظتی استراتژیک وجود ندارد. طراحی و مدیریت ممکن است سازگار با بهترین عملکرد نباشند.",null,null,null,{"$f":"IF(E18=3,TRUE,FALSE)","v":false}]
[null,"0- بخش‌های مهم شهر از ریسک/ مخاطرات شناخته‌شده محافظت نمی‌شوند.",null,null,null,{"$f":"IF(E18=4,TRUE,FALSE)","v":false}]
[null,"Actions to achieve maximum resilience   اقدامات برای دستیابی به حداکثر تاب آوری","Responsible institution   سازمان مسئول","Timescale  زمانبندی"]
[]
[]
[null,"P8.3 - Water – Potable and  آب - آشامیدنی و بهداشت"]
[null,"Question سوال","Comments توضیحات "]
[]
[null,"Response پاسخ","Provide means of verification (explanation and evidence)\nارائه مستندات و شواهد"]
[null,"3- حتی از \"سناریوی شدید\" خدماتی از دست نخواهد رفت.",null,null,null,{"$f":"IF(E29=1,TRUE,FALSE)","v":false}]
[null,"2- برخی از دست دادن خدمات از سناریوی \"بسیار جدی\" تجربه خواهند شد.",null,null,null,{"$f":"IF(E29=2,TRUE,FALSE)","v":false}]
[null,"1- برخی از دست دادن خدمات از \"محتمل‌ترین سناریوی\" تجربه خواهند شد.",null,null,null,{"$f":"IF(E29=3,TRUE,FALSE)","v":false}]
[null,"0- فقدان قابل‌توجه خدمات از \"محتمل‌ترین سناریوی\" تجربه خواهد شد.",null,null,null,{"$f":"IF(E29=4,TRUE,FALSE)","v":false}]
[null,"Actions to achieve maximum resilience   اقدامات برای دستیابی به حداکثر تاب آوری","Responsible institution   سازمان مسئول","Timescale  زمانبندی"]
[]
[]
[null,"P8.4 - Energy  انرژی"]
[null,"Question سوال","Comments توضیحات "]
[]
[null,"Response پاسخ","Provide means of verification (explanation and evidence)\nارائه مستندات و شواهد"]
[null,"3- حتی از \"سناریوی شدید\" خدماتی از دست نخواهد رفت.",null,null,null,{"$f":"IF(E40=1,TRUE,FALSE)","v":false}]
[null,"2- برخی از دست دادن خدمات از سناریوی «شدید» تجربه می شود.",null,null,null,{"$f":"IF(E40=2,TRUE,FALSE)","v":false}]
[null,"1- برخی از دست دادن خدمات از \"محتمل‌ترین سناریوی\" تجربه خواهند شد.",null,null,null,{"$f":"IF(E40=3,TRUE,FALSE)","v":false}]
[null,"0- از دست دادن قابل‌توجه خدمات از \" محتمل‌ترین حالت \" تجربه می‌شود.",null,null,null,{"$f":"IF(E40=4,TRUE,FALSE)","v":false}]
[null,"Actions to achieve maximum resilience   اقدامات برای دستیابی به حداکثر تاب آوری","Responsible institution   سازمان مسئول","Timescale  زمانبندی"]
[]
[]
[null,"P8.5 - Transport حمل و نقل "]
[null,"Question سوال","Comments توضیحات "]
[]
[null,"Response پاسخ","Provide means of verification (explanation and evidence)\nارائه مستندات و شواهد"]
[null,"3- حتی از \"سناریوی شدید\" خدماتی از دست نخواهد رفت.",null,null,null,{"$f":"IF(E51=1,TRUE,FALSE)","v":false}]
[null,"2- برخی از دست دادن خدمات از سناریوی «شدید» تجربه می شود.",null,null,null,{"$f":"IF(E51=2,TRUE,FALSE)","v":false}]
[null,"1- برخی از دست دادن خدمات از \"محتمل‌ترین سناریوی\" تجربه خواهند شد.",null,null,null,{"$f":"IF(E51=3,TRUE,FALSE)","v":false}]
[null,"0- از دست دادن قابل‌توجه خدمات از \" محتمل‌ترین حالت \" تجربه می‌شود.",null,null,null,{"$f":"IF(E51=4,TRUE,FALSE)","v":false}]
[null,"Actions to achieve maximum resilience   اقدامات برای دستیابی به حداکثر تاب آوری","Responsible institution   سازمان مسئول","Timescale  زمانبندی"]
[]
[]
[null,"P8.6 - Communications ارتباطات"]
[null,"Question سوال","Comments توضیحات "]
[]
[null,"Response پاسخ","Provide means of verification (explanation and evidence)\nارائه مستندات و شواهد"]
[null,"3- حتی از \"سناریوی شدید\" خدماتی از دست نخواهد رفت.",null,null,null,{"$f":"IF(E62=1,TRUE,FALSE)","v":false}]
[null,"2- برخی از دست دادن خدمات از سناریوی «شدید» تجربه می شود.",null,null,null,{"$f":"IF(E62=2,TRUE,FALSE)","v":false}]
[null,"1- برخی از دست دادن خدمات از \"محتمل‌ترین سناریوی\" تجربه خواهند شد.",null,null,null,{"$f":"IF(E62=3,TRUE,FALSE)","v":false}]
[null,"0- از دست دادن قابل‌توجه خدمات از \" محتمل‌ترین حالت \" تجربه می‌شود.",null,null,null,{"$f":"IF(E62=4,TRUE,FALSE)","v":false}]
[null,"Actions to achieve maximum resilience   اقدامات برای دستیابی به حداکثر تاب آوری","Responsible institution   سازمان مسئول","Timescale  زمانبندی"]
[]
[]
[null,"P8.7 - Healthcare بهداشت"]
[null,"Question سوال","Comments توضیحات "]
[]
[null,"Response پاسخ","Provide means of verification (explanation and evidence)\nارائه مستندات و شواهد"]
[null,"3- > ۹۰ % از آسیب‌های جدی در سناریوی \"شدیدترین\" را می‌توان در عرض ۶ ساعت درمان کرد.",null,null,null,{"$f":"IF(E73=1,TRUE,FALSE)","v":false}]
[null,"2- > ۹۰ % از آسیب‌های جدی در سناریوی \"شدیدترین\" را می‌توان در عرض ۲۴ ساعت درمان کرد.",null,null,null,{"$f":"IF(E73=2,TRUE,FALSE)","v":false}]
[null,"1- > ۹۰ % از آسیب‌های جدی در سناریوی \"شدیدترین\" را می‌توان در عرض ۳۶ ساعت درمان کرد.",null,null,null,{"$f":"IF(E73=3,TRUE,FALSE)","v":false}]
[null,"0- بیش از ۳۶ ساعت یا هیچ قابلیت بهداشتی اضطراری وجود ندارد.",null,null,null,{"$f":"IF(E73=4,TRUE,FALSE)","v":false}]
[null,"Actions to achieve maximum resilience   اقدامات برای دستیابی به حداکثر تاب آوری","Responsible institution   سازمان مسئول","Timescale  زمانبندی"]
[]
[]
[null,"P8.8 - Education facilities امکانات آموزشی"]
[null,"Question سوال","Comments توضیحات "]
[]
[null,"Response پاسخ","Provide means of verification (explanation and evidence)\nارائه مستندات و شواهد"]
[null,"3- هیچ امکانات آموزشی در معرض ریسک حتی در بدترین حالت ممکن نیست.",null,null,null,{"$f":"IF(E84=1,TRUE,FALSE)","v":false}]
[null,"2- هیچ امکانات آموزشی در ریسک \"محتمل‌ترین سناریوی\" وجود ندارد.",null,null,null,{"$f":"IF(E84=2,TRUE,FALSE)","v":false}]
[null,"1- ۵- ۱۰ درصد از امکانات آموزشی در معرض خطر \"محتمل‌ترین سناریوی\".",null,null,null,{"$f":"IF(E84=3,TRUE,FALSE)","v":false}]
[null,"0- بیشتر از ۱۵ درصد از تسهیلات آموزشی در معرض خطر \"محتمل‌ترین سناریوی\" هستند.",null,null,null,{"$f":"IF(E84=4,TRUE,FALSE)","v":false}]
[null,"Actions to achieve maximum resilience   اقدامات برای دستیابی به حداکثر تاب آوری","Responsible institution   سازمان مسئول","Timescale  زمانبندی"]
[]
[]
[null,"P8.9 - First responder assets اولین پاسخ‌دهنده"]
[null,"Question سوال","Comments توضیحات "]
[]
[null,"Response پاسخ","Provide means of verification (explanation and evidence)\nارائه مستندات و شواهد"]
[null,"3- سطوح تجهیزات و دارایی‌ها یا مدل شده‌اند و یا ثابت شده‌اند که در عمل برای مقابله با سناریوی \"بسیار جدی\" مناسب هستند.",null,null,null,{"$f":"IF(E95=1,TRUE,FALSE)","v":false}]
[null,"2- سطوح تجهیزات و دارایی‌ها یا مدل شده‌اند و یا ثابت شده‌اند که در عمل برای مقابله با سناریوی \"بسیار جدی\" مناسب هستند، \nاگر چه این کار بر ترتیبات کمکی متقابل تکیه دارد. توافق‌نامه‌های هم‌کاری دوجانبه به احتمال زیاد تحت‌تاثیر بحران های مشابه مورد آزمایش قرار گرفتند.",null,null,null,{"$f":"IF(E95=2,TRUE,FALSE)","v":false}]
[null,"1- دارایی‌ها نیازهای اولیه تحت سناریوی \" سخت‌ترین \" را برآورده می‌کنند اما شکاف وجود دارد.",null,null,null,{"$f":"IF(E95=3,TRUE,FALSE)","v":false}]
[null,"0- شکاف‌های قابل‌توجه در توانایی برآورده کردن نیازها، حتی در سناریوی \"محتمل\".",null,null,null,{"$f":"IF(E95=4,TRUE,FALSE)","v":false}]
[null,"Actions to achieve maximum resilience   اقدامات برای دستیابی به حداکثر تاب آوری","Responsible institution   سازمان مسئول","Timescale  زمانبندی"]

{"sheet":"E09","index":11,"n_rows":77,"n_cols":6,"rows_kept":77,"cut":false,"hidden":false,"merged":[[70,2,70,3],[71,2,71,3],[72,2,75,3],[58,2,58,3],[59,2,59,3],[60,2,60,3],[61,2,64,3],[69,2,69,3],[39,2,42,3],[47,2,47,3],[48,2,48,3],[49,2,49,3],[50,2,53,3],[27,2,27,3],[28,2,31,3],[36,2,36,3],[37,2,37,3],[38,2,38,3],[35,2,35,3],[15,2,15,3],[16,2,16,3],[17,2,20,3],[25,2,25,3],[26,2,26,3],[24,2,24,3],[3,2,3,3],[4,2,4,3],[5,2,5,3],[6,2,9,3],[14,2,14,3],[13,1,13,3]]}
[]
[]
[null,"P9.1 - Early warning هشدار سریع"]
[null,"Question سوال","Comments توضیحات "]
[]
[null,"Response پاسخ","Provide means of verification (explanation and evidence)\nارائه مستندات و شواهد"]
[null,"3- برآورد شده است که بیش از 90 درصد از جمعیت با سیستم هشدار سریع قابل دسترسی است.",null,null,null,{"$f":"IF(E7=1,TRUE,FALSE)","v":false}]
[null,"2- برآورد شده است که بیش از 75 درصد از جمعیت با سیستم هشدار سریع قابل دسترسی است.",null,null,null,{"$f":"IF(E7=2,TRUE,FALSE)","v":false}]
[null,"1- تخمین زده‌شده که بیش از نیمی از جمعیت با سیستم هشدار سریع قابل‌دسترسی هستند.",null,null,null,{"$f":"IF(E7=3,TRUE,FALSE)","v":false}]
[null,"0- کم‌تر از نیمی از جمعیت با سیستم هشدار سریع قابل‌دسترسی هستند.",null,null,null,{"$f":"IF(E7=4,TRUE,FALSE)","v":false}]
[null,"Actions to achieve maximum resilience   اقدامات برای دستیابی به حداکثر تاب آوری","Responsible institution   سازمان مسئول","Timescale  زمانبندی"]
[]
[]
[null,"P9.2 - Event management plans برنامه‌های مدیریت رخداد"]
[null,"Question سوال","Comments توضیحات "]
[]
[null,"Response پاسخ","Provide means of verification (explanation and evidence)\nارائه مستندات و شواهد"]
[null,"3- یک برنامه واکنش اضطراری / آمادگی برای عکس‌العمل در برابر بحران، آمادگی و واکنش به موارد اضطراری محلی وجود دارد.",null,null,null,{"$f":"IF(E18=1,TRUE,FALSE)","v":false}]
[null,"2- یک برنامه جامع وجود دارد اما شامل شکاف‌های قابل‌توجهی در پوشش برای کاهش اثرات، آمادگی و واکنش به موارد اضطراری محلی است.",null,null,null,{"$f":"IF(E18=2,TRUE,FALSE)","v":false}]
[null,"1- برخی برنامه‌ها وجود دارند، اما جامع نیستند یا وابسته اند.",null,null,null,{"$f":"IF(E18=3,TRUE,FALSE)","v":false}]
[null,"0- هیچ برنامه شناخته شده ای وجود ندارد",null,null,null,{"$f":"IF(E18=4,TRUE,FALSE)","v":false}]
[null,"Actions to achieve maximum resilience   اقدامات برای دستیابی به حداکثر تاب آوری","Responsible institution   سازمان مسئول","Timescale  زمانبندی"]
[]
[]
[null,"P9.3 - Staffing / responder needs نیاز به کارکنان / پاسخ دهندگان"]
[null,"Question سوال","Comments توضیحات "]
[]
[null,"Response پاسخ","Provide means of verification (explanation and evidence)\nارائه مستندات و شواهد"]
[null,"3- ظرفیت گسترش وجود دارد و یا از طریق حوادث واقعی یا تمرین‌های عملی برای بحران و سناریوهای مخاطره در اصل 2 همه محله‌ها در عرض ۴ ساعت امکان پذیر خواهد بود.",null,null,null,{"$f":"IF(E29=1,TRUE,FALSE)","v":false}]
[null,"2-پوشش همه محله ها طی 24-48 ساعت.",null,null,null,{"$f":"IF(E29=2,TRUE,FALSE)","v":false}]
[null,"1- پوشش همه محله ها ظرف 48-72 ساعت .",null,null,null,{"$f":"IF(E29=3,TRUE,FALSE)","v":false}]
[null,"0- ظرفیت بالقوه مشخص نشده است.",null,null,null,{"$f":"IF(E29=4,TRUE,FALSE)","v":false}]
[null,"Actions to achieve maximum resilience   اقدامات برای دستیابی به حداکثر تاب آوری","Responsible institution   سازمان مسئول","Timescale  زمانبندی"]
[]
[]
[null,"P9.4 - Equipment and relief supply needs نیازهای تجهیزات و امداد رسانی"]
[null,"Question سوال","Comments توضیحات "]
[]
[null,"Response پاسخ","Provide means of verification (explanation and evidence)\nارائه مستندات و شواهد"]
[null,"3- نیازها مشخص، مرتبط با سناریوهای بحران و در نظر گرفتن نقش داوطلبان.",null,null,null,{"$f":"IF(E40=1,TRUE,FALSE)","v":false}]
[null,"2- نیازها مشخص و مرتبط با سناریوهای بحران هستند.",null,null,null,{"$f":"IF(E40=2,TRUE,FALSE)","v":false}]
[null,"1- تعریف نیازها ضرورتاً اسمی است یا حدس و گمان.",null,null,null,{"$f":"IF(E40=3,TRUE,FALSE)","v":false}]
[null,"0- نیازی مشخص(یا هیچ برنامه‌ای) نیست.",null,null,null,{"$f":"IF(E40=4,TRUE,FALSE)","v":false}]
[null,"Actions to achieve maximum resilience   اقدامات برای دستیابی به حداکثر تاب آوری","Responsible institution   سازمان مسئول","Timescale  زمانبندی"]
[]
[]
[null,"P9.5 - Food, shelter, staple goods and fuel supply غذا، سرپناه، کالاهای اساسی و تامین سوخت"]
[null,"Question سوال","Comments توضیحات "]
[]
[null,"Response پاسخ","Provide means of verification (explanation and evidence)\nارائه مستندات و شواهد"]
[null,"3- در \"سناریوی شدید\"، عرضه مواد غذایی اضطراری و اقلام امدادی اساسی بیش از نیاز پیش بینی شده است.",null,null,null,{"$f":"IF(E51=1,TRUE,FALSE)","v":false}]
[null,"2- در \"سناریوی شدید\"، عرضه مواد غذایی اضطراری و اقلام امدادی اساسی برابر با نیاز پیش بینی شده است.",null,null,null,{"$f":"IF(E51=2,TRUE,FALSE)","v":false}]
[null,"1- در شرایط \"شدید\"، عرضه مواد غذایی اضطراری و اقلام امدادی پایه کمتر از نیاز تخمینی 2٪ یا بیشتر است.",null,null,null,{"$f":"IF(E51=3,TRUE,FALSE)","v":false}]
[null,"0- در \"شدیدترین\" سناریو، تامین غذای اضطراری و اقلام امدادی اصلی کم‌تر از نیاز تخمینی ۵ % یا بیش از ۲۴ ساعت است.",null,null,null,{"$f":"IF(E51=4,TRUE,FALSE)","v":false}]
[null,"Actions to achieve maximum resilience   اقدامات برای دستیابی به حداکثر تاب آوری","Responsible institution   سازمان مسئول","Timescale  زمانبندی"]
[]
[]
[null,"P9.6 - Interoperability and inter-agency working  هم‌کاری و هم‌کاری بین سازمانی"]
[null,"Question سوال","Comments توضیحات "]
[]
[null,"Response پاسخ","Provide means of verification (explanation and evidence)\nارائه مستندات و شواهد"]
[null,"3- مرکز عملیات‌های اضطراری با ارتباطات قوی / اضافی وجود دارد که برای مقابله با \"سخت‌ترین سناریو\" طراحی شده‌است؛ همه ادارات مربوطه در آن شرکت دارند.",null,null,null,{"$f":"IF(E62=1,TRUE,FALSE)","v":false}]
[null,"2- مرکز عملیات‌های اضطراری با ارتباطات قوی / اضافی وجود دارد که برای مقابله با \"سخت‌ترین سناریو\" طراحی شده‌است؛ ادارات مرکزی تنها در این عملیات شرکت می‌کنند.",null,null,null,{"$f":"IF(E62=2,TRUE,FALSE)","v":false}]
[null,"1- مرکز عملیات اضطراری تعیین‌شده, اما با ارتباطات آسیب‌پذیر و / یا یک یا چند نهاد مربوطه که در آن شرکت نمی‌کنند.",null,null,null,{"$f":"IF(E62=3,TRUE,FALSE)","v":false}]
[null,"0- هیچ مرکز عملیات اضطراری وجود ندارد.",null,null,null,{"$f":"IF(E62=4,TRUE,FALSE)","v":false}]
[null,"Actions to achieve maximum resilience   اقدامات برای دستیابی به حداکثر تاب آوری","Responsible institution   سازمان مسئول","Timescale  زمانبندی"]
[]
[]
[null,"P9.7 - Drills مانور"]
[null,"Question سوال","Comments توضیحات "]
[]
[null,"Response پاسخ","Provide means of verification (explanation and evidence)\nارائه مستندات و شواهد"]
[null,"3- مجموعه سالانه ازمانورها توسط حرفه‌ای‌ها تایید شد تا نمایشی واقع گرایانه از \"بیشترین\" و \"محتمل‌ترین\" سناریوهای \" باشند.",null,null,null,{"$f":"IF(E73=1,TRUE,FALSE)","v":false}]
[null,"2- مانور سالانه توسط افراد حرفه‌ای، سناریوهای محدود آزمایشی تایید شدند.",null,null,null,{"$f":"IF(E73=2,TRUE,FALSE)","v":false}]
[null,"1- تمرینات جزئی تک منظوره - نه همه سناریوهای مورد آزمایش، نه واقع گرایانه.",null,null,null,{"$f":"IF(E73=3,TRUE,FALSE)","v":false}]
[null,"0- بدون تمرین (یا بدون برنامه - نگاه کنید به بالا).",null,null,null,{"$f":"IF(E73=4,TRUE,FALSE)","v":false}]
[null,"Actions to achieve maximum resilience   اقدامات برای دستیابی به حداکثر تاب آوری","Responsible institution   سازمان مسئول","Timescale  زمانبندی"]

{"sheet":"E10","index":12,"n_rows":22,"n_cols":6,"rows_kept":22,"cut":false,"hidden":false,"merged":[[15,2,15,3],[17,2,20,3],[3,2,3,3],[4,2,4,3],[5,2,5,3],[6,2,9,3],[14,2,14,3],[16,2,16,3]]}
[]
[]
[null,"P10.1 - Post-event recovery planning – pre-event برنامه‌ریزی بازیابی پس از رویداد - قبل از رویداد"]
[null,"Question سوال","Comments توضیحات "]
[]
[null,"Response پاسخ","Provide means of verification (explanation and evidence)\nارائه مستندات و شواهد"]
[null,"3- یک استراتژی / فرآیند وجود دارد. این مهم است و ذینفعان آن را به خوبی درک می کنند.",null,null,null,{"$f":"IF(E7=1,TRUE,FALSE)","v":false}]
[null,"2- یک استراتژی / فرآیند در محل وجود دارد. این مساله توسط ذینفعان مربوطه قابل‌درک است اما نقاط ضعف شناخته‌شده‌ای دارد.",null,null,null,{"$f":"IF(E7=2,TRUE,FALSE)","v":false}]
[null,"1- برخی برنامه‌ها / استراتژی‌ها وجود دارند اما جامع نیستند و یا توسط ذینفعان مربوطه پی‌گیری و یا درک نمی‌شوند.",null,null,null,{"$f":"IF(E7=3,TRUE,FALSE)","v":false}]
[null,"0- برنامه های شناخته شده ای وجود ندارد",null,null,null,{"$f":"IF(E7=4,TRUE,FALSE)","v":false}]
[null,"Actions to achieve maximum resilience   اقدامات برای دستیابی به حداکثر تاب آوری","Responsible institution   سازمان مسئول","Timescale  زمانبندی"]
[]
[]
[null,"P10.2 - Lessons learnt / learning  درسهای آموخته شده / حلقه های یادگیری"]
[null,"Question سوال","Comments توضیحات "]
[]
[null,"Response پاسخ","Provide means of verification (explanation and evidence)\nارائه مستندات و شواهد"]
[null,"3- فرآیندهای روشن به منظور دستیابی به درس‌هایی از پس از رویداد ناموفق به اجرا در می‌آیند. مکانیسم‌های مشخص و موثر برای تغذیه این درس‌ها به طراحی و تحویل پروژه‌های بازسازی وجود دارد.",null,null,null,{"$f":"IF(E18=1,TRUE,FALSE)","v":false}]
[null,"2- فرآیندهای روشن برای گرفتن درس از وقایع پس از رویداد، مکانیسم ها / فرایندها برای تدارک این درس ها به منظور طراحی و تحویل پروژه های بازسازی نیاز به بهبود دارد.",null,null,null,{"$f":"IF(E18=2,TRUE,FALSE)","v":false}]
[null,"1- برخی درس‌ها گرفته و منتشر می‌شوند اما نه به طور کامل و منظم.",null,null,null,{"$f":"IF(E18=3,TRUE,FALSE)","v":false}]
[null,"0- درس یادگرفته شده برنامه‌ریزی نشده / گاهی اوقات و متکی بر افراد است.",null,null,null,{"$f":"IF(E18=4,TRUE,FALSE)","v":false}]
[null,"Actions to achieve maximum resilience   اقدامات برای دستیابی به حداکثر تاب آوری","Responsible institution   سازمان مسئول","Timescale  زمانبندی"]

{"sheet":"About","index":13,"n_rows":0,"n_cols":0,"rows_kept":0,"cut":false,"hidden":false,"merged":[]}